bitfinex/quotes_ETHUSD_20250129
["timestamp","ask_amount","ask_price","bid_price","bid_amount"]
[1738173825999,0.0075,3094.0,3093.7,0.03359578]
[1738173826236,0.3718853,3094.0,3093.4,3.23263]
[1738173826475,3.636253,3094.2,3093.8,0.03351007]
[1738173826737,3.99604,3094.8,3094.1,3.23188]
[1738173826902,3.23135,3094.7,3094.1,3.23188]
[1738173827099,0.0075,3094.6,3094.2,0.03316727]
[1738173827332,0.0075,3094.6,3094.1,3.23188]
[1738173827536,0.0075,3094.6,3094.2,0.03316727]
[1738173827852,0.0075,3094.7,3093.8,4.02752]
[1738173828144,0.7648,3094.8,3094.2,3.23184]
[1738173828352,4.395615,3094.8,3094.2,3.23184]
[1738173828653,0.0075,3094.7,3094.3,0.03297735]
[1738173828806,3.23113,3094.9,3094.3,0.03297735]
[1738173829005,3.2311,3095.0,3094.3,3.23166]
[1738173829206,3.2311,3095.0,3093.8,0.7953]
[1738173829207,3.89408984,3094.9,3094.0,3.23204]
[1738173829561,0.8185,3094.4,3093.5,0.005]
[1738173829760,0.0075,3094.1,3093.6,3.23243]
[1738173830105,0.8035,3094.4,3093.9,3.23207]
[1738173830402,0.66287984,3094.9,3094.5,3.23151]
[1738173830685,3.39767841,3095.1,3094.5,3.23151]
[1738173830686,0.0075,3095.0,3094.5,3.23151]
[1738173830852,0.16671841,3095.1,3093.7,9.69711]
[1738173831020,3.86301416,3096.0,3095.0,3.23095]
[1738173831021,4.523436,3095.7,3095.0,3.23095]
[1738173831216,4.01259,3095.8,3095.1,3.23086]
[1738173831419,0.7824,3095.8,3094.8,0.7663]
[1738173831618,3.23032,3095.7,3095.0,3.23098]
[1738173831835,0.0075,3095.6,3095.0,3.23098]
[1738173832100,3.632422,3095.6,3094.8,3.23121]
[1738173832347,3.23067,3095.4,3094.8,3.23121]
[1738173832954,3.632422,3095.6,3094.8,3.23121]
[1738173833157,0.7824,3095.8,3095.0,3.23097]
[1738173833356,0.0075,3095.7,3095.2,3.23074]
[1738173833570,0.8289,3096.2,3095.7,3.23027]
[1738173833986,0.17416978,3096.5,3095.5,3.23043]
[1738173834153,0.16666978,3096.5,3095.4,3.23059]
[1738173834465,3.2299,3096.1,3095.4,3.23059]
[1738173834668,0.645959,3096.1,3095.5,3.23047]
[1738173834815,0.015,3096.4,3095.3,3.23064]
[1738173835015,3.23015,3095.9,3095.3,3.23064]
[1738173835252,3.24491,3096.1,3094.9,3.23107]
[1738173835466,3.23018,3095.9,3094.4,0.809]
[1738173835762,3.23018,3095.9,3095.0,3.23092]
[1738173835911,0.323018,3095.8,3095.4,3.23059]
[1738173836118,0.16666978,3096.5,3096.0,3.2299]
[1738173836354,0.16666978,3096.5,3096.1,0.03104082]
[1738173836571,0.7817,3096.6,3096.1,0.03104082]
[1738173836734,0.7817,3096.6,3096.1,3.22977]
[1738173836937,0.7817,3096.6,3096.2,0.03099082]
[1738173837130,3.22951,3096.5,3096.2,0.03099082]
[1738173837324,3.22951,3096.5,3095.9,3.23]
[1738173837519,1.182797,3096.6,3096.0,0.03109241]
[1738173837723,3.23012,3095.9,3095.1,3.23082]
[1738173838022,3.2307,3095.3,3095.2,0.03184688]
[1738173838235,0.646129,3095.3,3095.2,0.03184688]
[1738173838460,3.23059,3095.5,3094.9,3.2311]
[1738173838821,3.23028,3095.7,3095.1,3.23083]
[1738173839022,3.23041,3095.6,3095.0,3.26301816]
[1738173839226,3.23041,3095.6,3095.2,0.03184688]
[1738173839535,3.23076,3095.3,3094.5,3.23147]
[1738173839732,0.0075,3095.4,3094.6,0.03216298]
[1738173839938,0.0075,3095.3,3094.5,0.23982222]
[1738173840245,3.23119,3094.9,3094.5,0.23982222]
[1738173840539,3.23143,3094.6,3094.5,0.23982222]
[1738173840723,0.722357,3094.9,3094.5,0.23982222]
[1738173841054,0.7536,3096.3,3095.6,3.23038]
[1738173841227,0.7536,3096.3,3095.5,3.23046]
[1738173841228,3.22983,3096.2,3095.5,3.23046]
[1738173841440,0.7536,3096.3,3095.9,3.22998]
[1738173841647,0.401097,3096.6,3096.2,3.22975]
[1738173841829,0.401097,3096.6,3095.7,0.8041]
[1738173841830,3.630467,3096.6,3095.7,0.8041]
[1738173842027,0.8327,3096.8,3096.3,3.22965]
[1738173842227,0.7542,3097.3,3096.0,6.45994]
[1738173842421,0.7542,3097.8,3096.3,3.22966]
[1738173842739,1.292078,3098.3,3097.2,0.7967]
[1738173842922,3.22774,3098.2,3097.5,3.22832]
[1738173843133,0.40502056,3098.3,3097.2,0.7967]
[1738173843330,3.27050557,3098.4,3098.3,3.22757]
[1738173843628,3.27050557,3098.4,3097.8,3.22808]
[1738173843831,3.27050557,3098.4,3097.6,3.22827]
[1738173844052,3.2276,3098.3,3097.7,3.22817]
[1738173844289,3.2276,3098.3,3097.4,3.22845]
[1738173844290,3.22785,3098.1,3097.4,3.22845]
[1738173844462,0.322785,3098.0,3097.4,3.22846]
[1738173844812,3.22789,3098.0,3097.2,4.50334]
[1738173845006,3.22801,3097.9,3097.2,4.50334]
[1738173845147,0.0075,3097.5,3096.8,0.8264]
[1738173845513,0.0075,3097.5,3095.8,0.2]
[1738173845514,3.22956,3096.4,3095.8,3.23011]
[1738173845661,3.22956,3096.4,3095.6,4.05673]
[1738173846078,3.22968,3096.3,3095.6,4.05673]
[1738173846278,3.22986,3096.2,3095.7,0.03008176]
[1738173846485,3.23012,3095.9,3095.7,0.03008176]
[1738173846783,0.645998,3095.9,3095.1,0.7584]
[1738173846980,3.22936,3096.6,3095.8,3.26221874]
[1738173847182,3.22957,3096.4,3095.8,3.23008]
[1738173847350,3.22917,3096.8,3095.9,0.03204702]
[1738173847678,3.628127,3096.8,3096.1,3.22978]
[1738173847880,3.628127,3096.8,3095.9,3.26208702]
[1738173847881,0.0075,3096.7,3095.9,0.03204702]
[1738173848083,3.23725,3096.3,3096.2,0.03177192]
[1738173848299,3.2302,3095.8,3095.1,3.98929]
[1738173848515,0.32302,3095.7,3094.6,0.8075]
[1738173848690,3.23042,3095.6,3095.2,0.03268913]
[1738173848849,3.23034,3095.7,3095.0,3.23095]
[1738173849044,3.23036,3095.7,3095.3,0.03042423]
[1738173849250,0.7569,3096.0,3094.6,0.8075]
[1738173849551,0.015,3095.4,3093.9,2.559]
[1738173849750,3.23144,3094.6,3093.9,5.79113]
[1738173850004,3.23129,3094.8,3094.0,3.23204]
[1738173850294,3.231,3095.1,3093.9,2.559]
[1738173850476,3.23137,3094.7,3094.1,3.23192]
[1738173850831,3.0,3095.4,3094.6,3.23135]
[1738173850832,3.23064,3095.4,3094.6,3.23135]
[1738173850949,3.98202,3095.5,3093.9,2.559]
[1738173851152,3.23061,3095.4,3094.6,3.23143]
[1738173851370,0.7515,3095.5,3093.9,2.559]
[1738173851601,3.23134,3094.7,3094.1,3.23187]
[1738173851804,3.23134,3094.7,3093.9,2.559]
[1738173851805,0.323134,3094.7,3093.9,2.559]
[1738173852009,3.23097,3095.1,3094.3,3.2317]
[1738173852210,3.23103,3095.0,3094.3,3.2317]
[1738173852410,3.23026,3095.8,3094.3,4.25728814]
[1738173852609,3.23056,3095.5,3094.8,3.23115]
[1738173852947,3.23066,3095.4,3094.7,3.23124]
[1738173853074,3.23066,3095.4,3094.5,3.23153]
[1738173853411,3.553572,3095.5,3094.7,3.23124]
[1738173853605,3.23065,3095.4,3094.7,3.23124]
[1738173853906,3.27050557,3095.5,3095.0,3.23093]
[1738173854107,3.27050557,3095.5,3094.4,0.774]
[1738173854414,3.27050557,3095.5,3095.3,3.23065]
[1738173854703,3.27050557,3095.5,3095.2,3.2308]
[1738173855045,3.27050557,3095.5,3095.4,4.0416]
[1738173855168,3.27050557,3095.5,3095.4,0.811]
[1738173855375,3.27050557,3095.5,3095.1,35.0]
[1738173855575,3.27050557,3095.5,3094.9,4.00314]
[1738173855776,3.27050557,3095.5,3094.9,0.7721]
[1738173856110,3.27050557,3095.5,3093.9,6.81628814]
[1738173856111,0.7723,3095.4,3094.0,0.7721]
[1738173856371,0.7723,3095.4,3094.1,3.23187]
[1738173856677,3.59755613,3095.5,3095.4,3.2306]
[1738173856910,3.27050557,3095.8,3095.4,3.2306]
[1738173857204,3.27050557,3095.8,3095.7,3.23028]
[1738173857568,3.27050557,3095.8,3095.7,3.2636387]
[1738173859007,3.27050557,3095.8,3095.7,0.0333587]
[1738173859173,3.27050557,3095.8,3095.7,3.2636387]
[1738173859372,3.27050557,3095.8,3095.7,0.0333587]
[1738173859607,3.27050557,3095.8,3094.3,3.23172]
[1738173859608,6.82780613,3095.8,3095.2,3.23076]
[1738173859810,3.59755613,3095.8,3095.3,3.23062]
[1738173860009,3.59755613,3095.8,3095.1,3.2309]
[1738173860010,6.82780613,3095.8,3095.1,3.2309]
[1738173860311,3.55730056,3095.8,3095.1,3.2309]
[1738173860513,0.75489406,3095.7,3095.1,3.2309]
[1738173860711,3.23056,3095.5,3094.8,3.23118]
[1738173860927,3.98522406,3095.7,3095.1,3.23086]
[1738173861140,0.7615,3095.9,3095.4,3.23052]
[1738173861301,3.23059,3095.5,3094.7,3.23133]
[1738173861503,3.23073,3095.3,3094.7,3.23133]
[1738173861703,3.23018,3095.8,3094.6,0.7828]
[1738173861900,3.23018,3095.8,3095.1,3.2308]
[1738173862093,3.629348,3095.8,3095.2,3.2308]
[1738173862403,3.23055,3095.5,3094.8,3.23113]
[1738173862630,0.399168,3095.8,3095.0,3.23093]
[1738173862786,3.23041,3095.6,3095.0,3.23093]
[1738173862994,3.23085,3095.2,3094.6,4.01414]
[1738173863185,3.23085,3095.2,3094.3,38.23171]
[1738173863186,3.23085,3095.2,3094.5,3.23147]
[1738173863390,3.23085,3095.2,3094.4,3.23164]
[1738173863391,3.23101,3095.0,3094.4,3.23164]
[1738173863591,3.23101,3095.0,3094.2,3.23178]
[1738173863592,4.636492,3095.0,3094.2,3.23178]
[1738173863817,3.2313,3094.8,3094.2,3.23178]
[1738173864012,1.405482,3095.0,3094.3,3.23173]
[1738173864213,4.636572,3095.0,3094.4,3.23164]
[1738173864389,0.7593,3095.0,3094.6,3.23142]
[1738173864789,0.7593,3095.0,3094.6,0.03532497]
[1738173865227,3.23132,3094.8,3094.1,3.23192]
[1738173865423,3.23132,3094.8,3094.6,0.03532497]
[1738173865626,3.630382,3094.8,3094.1,3.23192]
[1738173865840,3.630382,3094.8,3094.6,0.03532497]
[1738173866127,3.2314,3094.7,3094.6,0.03532497]
[1738173866328,3.2314,3094.7,3094.0,38.232]
[1738173866329,3.630382,3094.8,3094.1,3.23195]
[1738173866488,3.630382,3094.8,3094.2,0.03575336]
[1738173866489,3.23139,3094.7,3094.2,0.03575336]
[1738173866689,0.7593,3095.0,3093.7,4.02122]
[1738173866690,3.23154,3094.5,3093.7,4.02122]
[1738173866934,3.23186,3094.2,3093.6,35.0]
[1738173867132,0.015,3094.9,3093.7,0.03129667]
[1738173867133,3.23216,3093.9,3093.7,0.03129667]
[1738173867465,7.05567,3093.6,3093.5,0.005]
[1738173868111,7.06317,3093.6,3093.5,0.005]
[1738173868429,3.23346,3092.7,3092.1,0.005]
[1738173868594,3.23348,3092.7,3092.1,0.005]
[1738173868899,3.23348,3092.7,3092.2,0.03267493]
[1738173869235,3.23325,3092.9,3092.2,0.03267493]
[1738173869418,3.23332,3092.8,3092.2,0.03267493]
[1738173869618,0.8244,3092.7,3092.2,0.03267493]
[1738173869863,3.23371,3092.5,3092.2,0.03267493]
[1738173869992,6.23383,3092.3,3092.2,0.03267493]
[1738173870220,3.23366,3092.5,3092.2,0.03267493]
[1738173870428,3.23366,3092.5,3092.1,0.005]
[1738173870429,3.23365,3092.5,3092.1,0.005]
[1738173870617,4.05785,3092.7,3092.3,0.03148207]
[1738173870829,3.23358,3092.6,3092.2,0.03156787]
[1738173871153,3.23358,3092.6,3092.1,0.005]
[1738173871154,3.23375,3092.4,3092.1,0.005]
[1738173871632,3.23394,3092.2,3092.1,0.005]
[1738173873094,3.23394,3092.2,3091.5,0.005]
[1738173873095,3.565,3092.1,3091.5,0.005]
[1738173873320,6.24957,3091.6,3091.5,0.005]
[1738173873535,6.24207,3091.6,3091.5,0.005]
[1738173873861,8.41914981,3091.6,3091.5,0.005]
[1738173874140,8.96914981,3091.6,3091.5,0.005]
[1738173874489,4.03077,3091.6,3091.5,0.005]
[1738173874610,4.59577,3091.6,3091.5,1e-05]
[1738173874820,4.59577,3091.6,3089.7,0.833]
[1738173874821,3.23603,3090.2,3089.8,0.1611534]
[1738173875002,4.01955,3090.4,3089.8,0.1853686]
[1738173875202,3.0,3091.0,3089.8,0.1853686]
[1738173875203,3.0,3090.7,3089.9,3.23632]
[1738173875420,3.0,3090.7,3090.0,3.23622]
[1738173875654,4.18560859,3090.8,3089.8,0.1853686]
[1738173875655,0.7837,3090.8,3089.8,0.1853686]
[1738173875798,4.01914,3090.8,3089.9,3.23633]
[1738173876140,3.23523,3091.0,3090.2,3.23594]
[1738173876304,3.23543,3090.8,3090.2,3.23597]
[1738173876499,4.05809,3091.2,3090.2,3.23597]
[1738173876757,3.23531,3090.9,3090.3,38.23591]
[1738173876901,4.22458483,3091.2,3090.4,3.23581]
[1738173877101,0.98959483,3091.2,3090.5,3.23572]
[1738173877333,0.821,3091.7,3090.5,0.84875505]
[1738173877533,0.821,3091.7,3091.0,3.23518]
[1738173877736,3.27050557,3091.6,3091.1,35.03330317]
[1738173877937,3.23475,3091.5,3091.1,35.05751837]
[1738173878106,3.27050557,3091.6,3091.1,35.05751837]
[1738173878107,3.23498,3091.2,3091.1,35.05751837]
[1738173878538,3.23498,3091.2,3091.1,0.05751837]
[1738173878539,6.24248,3091.2,3091.1,0.05751837]
[1738173878713,7.04828,3091.2,3091.1,0.05751837]
[1738173878912,7.04828,3091.2,3091.1,0.0242152]
[1738173878913,7.03328,3091.2,3091.1,0.0242152]
[1738173879114,8.55237637,3091.2,3091.1,0.0242152]
[1738173879305,5.55237637,3091.2,3091.1,0.0242152]
[1738173879731,0.7983,3091.2,3091.1,0.0242152]
[1738173879908,3.23487,3091.4,3091.1,0.0242152]
[1738173880324,6.50508557,3091.6,3091.2,0.03310603]
[1738173880325,6.50516557,3091.6,3091.2,0.03310603]
[1738173880526,3.27050557,3091.6,3091.2,0.03310603]
[1738173880719,0.8018,3092.3,3091.3,0.7926]
[1738173881027,3.23394,3092.2,3091.4,35.03293433]
[1738173881203,0.8018,3092.3,3091.4,0.03293433]
[1738173881643,3.23406,3092.1,3091.5,3.23464]
[1738173881871,3.23416,3092.0,3091.3,3.2590152]
[1738173882138,1.63475937,3092.3,3090.9,0.7826]
[1738173882139,1.63475937,3092.3,3091.6,0.03276266]
[1738173882351,0.8018,3092.3,3091.5,3.2588452]
[1738173882555,3.27050557,3092.5,3091.7,3.23438]
[1738173882556,6.50416557,3092.5,3091.7,3.23438]
[1738173883089,3.27050557,3092.5,3091.9,3.23423]
[1738173883242,3.27050557,3092.5,3091.9,3.23421]
[1738173883415,3.27050557,3092.5,3092.0,0.03241937]
[1738173883621,3.27050557,3092.5,3092.1,3.23396]
[1738173883820,3.27050557,3092.5,3092.1,0.35572956]
[1738173884023,3.27050557,3092.5,3092.4,3.23373]
[1738173884443,3.23269,3093.4,3092.8,3.23324]
[1738173884807,3.23269,3093.4,3092.9,0.03138668]
[1738173885009,0.76,3093.7,3092.8,0.0242152]
[1738173885320,3.27050557,3093.9,3093.6,3.23241]
[1738173885520,3.27050557,3093.9,3093.7,3.2323]
[1738173885738,3.27050557,3093.9,3093.4,0.7645]
[1738173885739,0.64439078,3094.4,3093.4,3.99717]
[1738173885986,3.23159,3094.5,3093.4,0.7645]
[1738173886198,0.48967041,3094.4,3093.8,3.23217]
[1738173886466,0.323159,3094.4,3093.8,3.23217]
[1738173886628,3.23155,3094.5,3093.9,0.03078996]
[1738173886829,0.16649167,3094.6,3093.9,0.03078996]
[1738173887271,3.94367,3095.1,3094.5,3.23153]
[1738173887560,3.23102,3095.0,3094.3,4.05072]
[1738173887760,3.23097,3095.1,3094.3,4.05072]
[1738173888069,0.16644992,3095.2,3094.7,3.23131]
[1738173888228,0.16644992,3095.2,3094.5,3.23144]
[1738173888427,0.16644992,3095.2,3094.3,0.819]
[1738173888428,3.73703391,3095.2,3094.8,0.03333653]
[1738173888737,3.23102,3095.0,3094.4,3.23164]
[1738173888978,3.2311,3095.0,3094.3,0.819]
[1738173889232,3.23119,3094.9,3094.4,0.03654291]
[1738173889465,3.23153,3094.5,3094.4,0.03654291]
[1738173889641,3.23153,3094.5,3093.4,0.7975]
[1738173889642,0.646287,3094.5,3093.4,0.7975]
[1738173889996,0.646287,3094.5,3094.4,0.0313225]
[1738173890297,3.2324,3093.7,3093.5,0.03214892]
[1738173890433,3.0,3093.4,3092.9,0.0242152]
[1738173890636,0.8086,3093.3,3092.9,0.0242152]
[1738173890869,0.70413,3093.2,3092.9,0.0242152]
[1738173891133,0.8086,3093.9,3092.9,0.0242152]
[1738173891344,3.23229,3093.8,3092.9,0.0242152]
[1738173891553,0.8086,3093.9,3093.0,0.03043437]
[1738173891733,4.04079,3093.9,3093.0,0.03043437]
[1738173891932,3.636419,3093.8,3093.0,0.03043437]
[1738173892191,3.0,3093.7,3093.0,0.03043437]
[1738173892393,3.23249,3093.6,3093.0,0.03043437]
[1738173892780,3.23261,3093.5,3092.9,0.0242152]
[1738173892988,3.0,3093.7,3093.0,0.03260825]
[1738173893189,3.23288,3093.3,3093.0,0.03260825]
[1738173893334,3.23268,3093.5,3093.0,0.03260825]
[1738173893535,3.23268,3093.5,3092.9,0.0242152]
[1738173893730,3.23278,3093.4,3093.1,0.03034861]
[1738173893967,3.0,3093.3,3092.9,0.0242152]
[1738173894173,6.23279,3093.3,3092.9,0.0242152]
[1738173894351,3.23269,3093.4,3093.0,0.03043437]
[1738173894947,3.23248,3093.6,3093.0,0.03043437]
[1738173895149,3.23233,3093.8,3093.0,0.83993437]
[1738173895666,1.027301,3093.8,3093.0,0.83993437]
[1738173895870,3.23229,3093.8,3093.0,4.07299437]
[1738173896068,3.23255,3093.6,3093.0,0.83993437]
[1738173896358,3.23211,3094.0,3093.3,3.23274]
[1738173896567,3.23197,3094.1,3093.4,3.23266]
[1738173896883,3.23197,3094.1,3093.5,3.23256]
[1738173897112,3.2321,3094.0,3093.5,0.03147383]
[1738173897308,3.23228,3093.8,3093.5,0.03147383]
[1738173897476,3.2321,3094.0,3093.3,3.23278]
[1738173897667,3.23216,3093.9,3093.6,0.03865083]
[1738173897909,3.23215,3094.0,3093.4,3.23264]
[1738173898130,3.878559,3094.0,3093.7,0.03532278]
[1738173898275,3.878559,3094.0,3093.2,3.23281]
[1738173898276,3.23215,3094.0,3093.2,3.23281]
[1738173898471,3.23215,3094.0,3093.7,0.03532278]
[1738173898701,3.23215,3094.0,3093.5,3.23257]
[1738173898917,3.23187,3094.2,3093.5,3.23257]
[1738173899118,3.23187,3094.2,3093.2,3.23279]
[1738173899119,3.23206,3094.0,3093.6,0.03542993]
[1738173899454,3.23186,3094.2,3093.5,3.23256]
[1738173899709,3.23186,3094.2,3093.3,3.23276]
[1738173899710,3.23207,3094.0,3093.7,0.03532278]
[1738173899876,3.23207,3094.0,3093.6,0.03542993]
[1738173900209,3.23216,3093.9,3093.0,0.8095]
[1738173900396,3.23139,3094.7,3093.8,0.8183]
[1738173900601,3.23139,3094.7,3094.0,3.23199]
[1738173900798,3.23115,3094.9,3094.3,3.23167]
[1738173900978,3.23133,3094.7,3094.1,3.23187]
[1738173901179,3.23071,3095.3,3094.7,0.7687]
[1738173901473,3.23054,3095.5,3094.7,3.99996]
[1738173901696,3.27348351,3095.7,3094.7,3.99996]
[1738173901898,6.50380351,3095.7,3095.1,3.23087]
[1738173902110,6.50380351,3095.7,3094.9,3.2311]
[1738173902331,3.27348351,3095.7,3095.4,3.23058]
[1738173902529,3.27348351,3095.7,3095.6,3.23039]
[1738173902898,1.292765,3096.4,3095.7,0.8127]
[1738173903077,1.292765,3096.4,3096.3,4.04236]
[1738173903312,3.2282,3097.7,3096.9,3.22894]
[1738173903480,3.5843759,3097.6,3096.9,3.22899]
[1738173903675,3.22859,3097.4,3096.7,3.22923]
[1738173903889,3.22865,3097.3,3096.7,3.22923]
[1738173904089,3.22859,3097.4,3095.5,0.7606]
[1738173904090,3.22898,3097.0,3095.5,0.7606]
[1738173904293,3.22982,3096.2,3095.5,0.7606]
[1738173904532,3.22956,3096.4,3095.7,3.23026]
[1738173904730,0.322956,3096.4,3095.5,0.7606]
[1738173905040,6.229,3097.0,3095.5,0.7606]
[1738173905041,3.22998,3096.0,3095.5,0.7606]
[1738173905199,3.22982,3096.2,3094.8,3.23117]
[1738173905402,3.22996,3096.1,3095.1,3.23089]
[1738173905597,3.22973,3096.3,3095.6,3.23037]
[1738173905821,3.22973,3096.3,3095.4,0.7738]
[1738173905822,3.23008,3095.9,3095.4,0.7738]
[1738173906025,0.16640863,3096.8,3095.4,0.7738]
[1738173906227,1.31738284,3097.1,3095.4,0.7738]
[1738173906540,1.31738284,3097.1,3096.7,3.22916]
[1738173907044,1.31738284,3097.1,3096.8,3.22911]
[1738173907245,1.31738284,3097.1,3096.6,0.8089]
[1738173907246,4.54627284,3097.1,3096.6,0.8089]
[1738173907415,3.22901,3097.0,3096.2,3.22974]
[1738173907606,4.54621284,3097.1,3096.4,3.22948]
[1738173907806,3.22895,3097.0,3096.4,3.22948]
[1738173908139,3.16631358,3097.5,3096.2,3.22974]
[1738173908349,3.16631358,3097.5,3096.1,0.7523]
[1738173908350,3.2294,3096.6,3096.1,0.7523]
[1738173908553,3.22924,3096.7,3096.1,0.7523]
[1738173908853,3.22913,3096.8,3095.7,0.7863]
[1738173909171,3.8049,3096.9,3095.7,0.7863]
[1738173909369,3.8049,3096.9,3095.5,0.05907192]
[1738173909370,3.22998,3096.0,3095.5,0.05907192]
[1738173909584,3.23019,3095.8,3095.2,0.7863]
[1738173910067,3.22963,3096.4,3095.2,0.7863]
[1738173910068,3.22994,3096.1,3095.2,0.7863]
[1738173910330,3.23015,3095.9,3095.2,0.7863]
[1738173910412,0.323015,3095.9,3095.2,0.7863]
[1738173910618,3.23088,3095.2,3094.8,0.8242]
[1738173910822,3.0,3095.7,3094.8,0.8242]
[1738173911067,3.23077,3095.3,3094.8,0.8242]
[1738173911384,3.23021,3095.8,3094.9,3.23108]
[1738173911521,3.23021,3095.8,3095.1,3.23089]
[1738173911725,4.25960154,3095.8,3094.3,0.7914]
[1738173911986,3.23101,3095.1,3094.3,0.7914]
[1738173912121,3.23068,3095.4,3094.3,0.7914]
[1738173912122,3.23088,3095.2,3094.5,3.23146]
[1738173912454,3.23007,3095.9,3094.3,0.7914]
[1738173912655,3.23089,3095.2,3094.4,0.402321]
[1738173912952,3.0,3095.8,3094.4,0.402321]
[1738173912953,3.2306,3095.4,3094.8,3.23122]
[1738173913153,3.23041,3095.6,3094.9,3.23105]
[1738173913356,3.23018,3095.8,3094.5,0.03230856]
[1738173913529,3.22955,3096.4,3095.3,0.829]
[1738173913728,3.22936,3096.6,3095.7,3.23026]
[1738173913928,3.22936,3096.6,3095.9,3.23003]
[1738173914143,0.8112,3097.0,3095.7,3.553286]
[1738173914144,3.22975,3096.3,3095.7,3.553286]
[1738173914342,3.22994,3096.1,3095.3,4.05967]
[1738173914572,3.2301,3095.9,3095.3,0.829]
[1738173914976,3.39585837,3096.3,3095.6,3.23038]
[1738173915278,3.22922,3096.8,3096.3,3.22965]
[1738173915459,3.22896,3097.0,3096.2,0.7575]
[1738173915839,0.16624269,3096.9,3096.2,0.7575]
[1738173916043,3.22952,3096.5,3096.2,0.7575]
[1738173916569,3.22924,3096.7,3096.2,0.7575]
[1738173916802,0.7623,3096.6,3095.4,0.7881]
[1738173916938,3.0,3096.3,3095.5,3.23049]
[1738173917279,3.22955,3096.4,3095.4,0.7881]
[1738173917280,6.46046,3095.8,3095.4,0.7881]
[1738173917475,3.23029,3095.7,3095.4,0.7881]
[1738173917775,6.46005,3096.0,3095.4,0.7881]
[1738173917954,3.22969,3096.3,3095.6,3.23032]
[1738173918149,3.22938,3096.6,3096.1,3.22986]
[1738173918350,3.39543534,3096.8,3096.1,3.22984]
[1738173918555,0.16622534,3096.8,3096.3,3.22964]
[1738173918973,3.39536534,3096.8,3096.2,4.06155]
[1738173919178,1.1551459,3097.6,3096.2,4.06154]
[1738173919363,1.1551459,3097.6,3096.2,0.8318]
[1738173919538,3.22959,3096.4,3095.7,3.2302]
[1738173919738,3.22959,3096.4,3095.8,0.33218526]
[1738173920081,3.22959,3096.4,3095.9,3.23006]
[1738173920241,3.22937,3096.6,3096.0,3.2299]
[1738173920443,3.22937,3096.6,3095.8,3.23017]
[1738173920444,3.22958,3096.4,3095.8,3.23017]
[1738173920974,0.015,3097.2,3095.6,3.23034]
[1738173921177,3.22932,3096.7,3095.7,0.03230017]
[1738173921379,0.92528379,3097.5,3096.3,0.7698]
[1738173921547,3.22915,3096.8,3096.3,3.99945]
[1738173921943,6.45796,3097.0,3096.3,3.99945]
[1738173922178,3.22873,3097.2,3096.6,3.22931]
[1738173922339,3.2281,3097.8,3096.3,3.99942]
[1738173922545,3.22904,3096.9,3096.3,0.7698]
[1738173922876,3.22874,3097.2,3096.6,3.22928]
[1738173923066,0.759,3097.9,3096.6,3.22928]
[1738173923377,3.2289,3097.1,3096.4,6.45901]
[1738173923579,3.22935,3096.6,3096.3,0.7698]
[1738173923786,3.22941,3096.6,3095.9,0.7698]
[1738173923941,3.98787,3097.1,3095.5,0.7698]
[1738173923942,3.23017,3095.9,3095.5,0.7698]
[1738173924140,3.0,3096.9,3095.1,0.7698]
[1738173924141,3.9887,3096.3,3095.1,0.7698]
[1738173924343,3.23026,3095.8,3095.1,0.7698]
[1738173924540,3.23039,3095.6,3095.1,4.33342]
[1738173924744,3.23026,3095.8,3095.1,4.33342]
[1738173925195,3.23037,3095.7,3095.1,4.33342]
[1738173925382,3.23058,3095.5,3095.1,0.7698]
[1738173925814,3.23029,3095.7,3095.1,0.7698]
[1738173925947,6.45985,3096.1,3095.1,0.7698]
[1738173926151,3.22934,3096.6,3095.1,0.7698]
[1738173926354,3.23056,3095.5,3095.1,0.7698]
[1738173926685,3.23118,3094.9,3094.6,0.8113]
[1738173926897,3.23213,3094.0,3093.8,0.8113]
[1738173927182,3.23216,3093.9,3093.8,35.0]
[1738173927347,3.23248,3093.6,3093.2,0.8113]
[1738173927543,3.23153,3094.5,3093.2,0.8113]
[1738173927544,3.2324,3093.7,3093.2,0.8113]
[1738173927770,3.2324,3093.7,3093.3,35.0]
[1738173927982,3.2325,3093.6,3093.2,0.8113]
[1738173928184,3.23223,3093.9,3093.2,4.04414]
[1738173928393,4.25100801,3094.6,3093.2,4.04414]
[1738173928394,3.23177,3094.3,3093.4,3.23268]
[1738173928565,3.23186,3094.2,3093.6,3.23245]
[1738173929080,3.8056,3094.8,3093.6,3.23245]
[1738173929281,3.23161,3094.5,3093.6,3.23245]
[1738173929584,3.23135,3094.7,3093.2,0.8113]
[1738173929585,3.0,3094.7,3093.7,35.0]
[1738173929802,3.23227,3093.8,3093.2,0.8113]
[1738173930115,3.23251,3093.6,3093.2,0.8113]
[1738173930268,3.23196,3094.1,3093.3,35.0]
[1738173930453,3.23182,3094.3,3093.6,3.23247]
[1738173930653,3.23156,3094.5,3093.8,3.23217]
[1738173930849,3.23133,3094.7,3093.8,3.2322]
[1738173931155,3.0,3095.0,3094.4,3.23162]
[1738173931156,3.23103,3095.0,3094.4,3.23162]
[1738173931362,0.015,3095.7,3094.7,3.2313]
[1738173931363,3.23061,3095.4,3094.7,3.2313]
[1738173931555,3.23095,3095.1,3094.5,3.23144]
[1738173931753,3.23072,3095.3,3094.7,3.23129]
[1738173932150,3.23072,3095.3,3094.8,35.0]
[1738173932551,4.01192,3095.7,3094.9,3.23105]
[1738173932860,4.00514,3096.1,3095.0,0.84840888]
[1738173933169,4.25100801,3096.6,3095.0,0.84840888]
[1738173933170,0.8038,3096.6,3095.2,3.2308]
[1738173933390,3.22935,3096.6,3096.0,3.22987]
[1738173933567,3.22931,3096.7,3096.0,3.22992]
[1738173933806,3.2293,3096.7,3096.1,3.22977]